[Event "Early-Titled-Tuesday-Blitz-February-27-2024"]
[Site "Chess.com"]
[Date "2024.02.27"]
[Round "10"]
[White "rcmz"]
[Black "HittingRookBottom"]
[Result "1-0"]
[WhiteElo "2196"]
[BlackElo "2018"]
[TimeControl "180+1"]
[EndTime "9:52:01 PST"]
[Termination "rcmz won by resignation"]

1. b4 {[%clk 0:03:00.9]} 1... c6 {[%clk 0:02:51.2]} 2. Bb2 {[%clk 0:02:59.1]}
2... d5 {[%clk 0:02:50.5]} 3. a3 {[%clk 0:02:57.5]} 3... Bf5 {[%clk 0:02:50.8]}
4. e3 {[%clk 0:02:57.3]} 4... Nd7 {[%clk 0:02:48.9]} 5. f4 {[%clk 0:02:56.4]}
5... Ngf6 {[%clk 0:02:48.4]} 6. Nf3 {[%clk 0:02:56.3]} 6... e6 {[%clk
0:02:48.2]} 7. Be2 {[%clk 0:02:56.3]} 7... Bd6 {[%clk 0:02:48.6]} 8. O-O {[%clk
0:02:56]} 8... Qc7 {[%clk 0:02:49]} 9. c4 {[%clk 0:02:56]} 9... h6 {[%clk
0:02:47.8]} 10. c5 {[%clk 0:02:55.6]} 10... Be7 {[%clk 0:02:47.6]} 11. Ne5
{[%clk 0:02:50.8]} 11... g5 {[%clk 0:02:43.3]} 12. Nxd7 {[%clk 0:02:50.1]} 12...
Nxd7 {[%clk 0:02:42.6]} 13. Bxh8 {[%clk 0:02:48.7]} 13... O-O-O {[%clk 0:02:42]}
14. Be5 {[%clk 0:02:46.4]} 14... Nxe5 {[%clk 0:02:42]} 15. fxe5 {[%clk
0:02:46.4]} 15... Qxe5 {[%clk 0:02:42.7]} 16. Nc3 {[%clk 0:02:45]} 16... g4
{[%clk 0:02:34.9]} 17. Bxg4 {[%clk 0:02:40.7]} 17... Rg8 {[%clk 0:02:34.6]} 18.
Bxf5 {[%clk 0:02:38.6]} 18... exf5 {[%clk 0:02:33.4]} 19. Qf3 {[%clk 0:02:38.2]}
19... d4 {[%clk 0:02:31.6]} 20. Qxf5+ {[%clk 0:02:33.8]} 20... Qxf5 {[%clk
0:02:31.4]} 21. Rxf5 {[%clk 0:02:33.7]} 21... dxc3 {[%clk 0:02:31.9]} 22. dxc3
{[%clk 0:02:33.8]} 22... f6 {[%clk 0:02:32.3]} 23. Rd1 {[%clk 0:02:31.1]} 23...
Rg4 {[%clk 0:02:29.9]} 24. Rf4 {[%clk 0:02:29.1]} 24... Rg5 {[%clk 0:02:29.2]}
25. Kf2 {[%clk 0:02:25.9]} 25... Re5 {[%clk 0:02:26]} 26. Kf3 {[%clk 0:02:20.8]}
26... f5 {[%clk 0:02:26.1]} 27. e4 {[%clk 0:02:15.9]} 27... fxe4+ {[%clk
0:02:19.7]} 28. Rxe4 {[%clk 0:02:15.3]} 28... Rf5+ {[%clk 0:02:19.8]} 29. Ke2
{[%clk 0:02:14]} 29... Bg5 {[%clk 0:02:19.6]} 30. h4 {[%clk 0:02:01.9]} 30...
Bf6 {[%clk 0:02:16.3]} 31. g4 {[%clk 0:01:59.9]} 31... Rd5 {[%clk 0:02:10.1]}
32. Rxd5 {[%clk 0:01:56.3]} 32... cxd5 {[%clk 0:02:10.4]} 33. Re6 {[%clk
0:01:55.8]} 33... Bxc3 {[%clk 0:02:06.8]} 34. Rxh6 {[%clk 0:01:55.2]} 34... Bb2
{[%clk 0:02:07.4]} 35. a4 {[%clk 0:01:55.2]} 35... Ba3 {[%clk 0:02:07.6]} 36. b5
{[%clk 0:01:55.1]} 36... Bxc5 {[%clk 0:02:08.1]} 37. Kd3 {[%clk 0:01:55.1]}
37... Bf2 {[%clk 0:02:07]} 38. Rh7 {[%clk 0:01:54.7]} 38... a6 {[%clk
0:02:05.1]} 39. g5 {[%clk 0:01:53.7]} 39... axb5 {[%clk 0:02:04.8]} 40. axb5
{[%clk 0:01:52.8]} 40... b6 {[%clk 0:02:05.7]} 41. h5 {[%clk 0:01:52.4]} 41...
Kd8 {[%clk 0:02:06.3]} 42. g6 {[%clk 0:01:51.2]} 42... Ke8 {[%clk 0:02:02.3]}
43. Rb7 {[%clk 0:01:49.4]} 43... Kf8 {[%clk 0:01:58.5]} 44. Rf7+ {[%clk
0:01:47.3]} 44... Kg8 {[%clk 0:01:58.5]} 45. Rxf2 {[%clk 0:01:47]} 1-0

[Event "Early-Titled-Tuesday-Blitz-February-27-2024"]
[Site "Chess.com"]
[Date "2024.02.27"]
[Round "10"]
[White "InitiatingASC"]
[Black "Viacheslav92"]
[Result "0-1"]
[WhiteElo "2358"]
[BlackElo "2532"]
[TimeControl "180+1"]
[EndTime "9:52:07 PST"]
[Termination "Viacheslav92 won by resignation"]

1. Nf3 {[%clk 0:02:45.5]} 1... Nf6 {[%clk 0:02:56.3]} 2. b3 {[%clk 0:02:45.6]}
2... b6 {[%clk 0:02:55.8]} 3. Bb2 {[%clk 0:02:46.3]} 3... Bb7 {[%clk 0:02:56.7]}
4. e3 {[%clk 0:02:46.7]} 4... g6 {[%clk 0:02:57.1]} 5. c4 {[%clk 0:02:46.7]}
5... Bg7 {[%clk 0:02:57.4]} 6. Be2 {[%clk 0:02:47.2]} 6... Bxf3 {[%clk
0:02:57.8]} 7. Bxf3 {[%clk 0:02:46.7]} 7... c6 {[%clk 0:02:57.9]} 8. O-O {[%clk
0:02:46.7]} 8... O-O {[%clk 0:02:57.5]} 9. d3 {[%clk 0:02:46.5]} 9... d5 {[%clk
0:02:58.2]} 10. cxd5 {[%clk 0:02:44.9]} 10... cxd5 {[%clk 0:02:59.1]} 11. Nd2
{[%clk 0:02:45.1]} 11... e6 {[%clk 0:02:59.4]} 12. Rc1 {[%clk 0:02:44.6]} 12...
Qd7 {[%clk 0:02:59.2]} 13. Qc2 {[%clk 0:02:44.6]} 13... Na6 {[%clk 0:02:57.5]}
14. a3 {[%clk 0:02:43.6]} 14... Rfc8 {[%clk 0:02:56.4]} 15. Qb1 {[%clk
0:02:43.8]} 15... Nc5 {[%clk 0:02:52.5]} 16. Be2 {[%clk 0:02:42.5]} 16... Rc7
{[%clk 0:02:51.7]} 17. Be5 {[%clk 0:02:31.8]} 17... Rcc8 {[%clk 0:02:49.1]} 18.
Qb2 {[%clk 0:02:16.8]} 18... Ne8 {[%clk 0:02:46.8]} 19. Bxg7 {[%clk 0:02:16.6]}
19... Nxg7 {[%clk 0:02:47.7]} 20. d4 {[%clk 0:02:17.2]} 20... Ne4 {[%clk
0:02:46.4]} 21. Nxe4 {[%clk 0:02:16.9]} 21... dxe4 {[%clk 0:02:47.3]} 22. Ba6
{[%clk 0:02:10.6]} 22... Rxc1 {[%clk 0:02:46.5]} 23. Rxc1 {[%clk 0:02:10.2]}
23... Nf5 {[%clk 0:02:46.9]} 24. Qc2 {[%clk 0:02:04.7]} 24... Qe7 {[%clk
0:02:42.5]} 25. Qxe4 {[%clk 0:02:03.1]} 25... Rd8 {[%clk 0:02:39.9]} 26. b4
{[%clk 0:02:00.8]} 26... h5 {[%clk 0:02:36.7]} 27. Qb7 {[%clk 0:01:55.8]} 27...
Qg5 {[%clk 0:02:32.2]} 28. Qxa7 {[%clk 0:01:41.9]} 28... Nxe3 {[%clk 0:02:23.8]}
29. g3 {[%clk 0:01:24.2]} 29... Nd5 {[%clk 0:02:09.7]} 30. Rc8 {[%clk
0:01:00.1]} 30... Rxc8 {[%clk 0:02:06.8]} 31. Bxc8 {[%clk 0:00:59.8]} 31... Qc1+
{[%clk 0:02:07.3]} 32. Kg2 {[%clk 0:00:59.6]} 32... Qxc8 {[%clk 0:02:08.2]} 0-1

[Event "Early-Titled-Tuesday-Blitz-February-27-2024"]
[Site "Chess.com"]
[Date "2024.02.27"]
[Round "10"]
[White "davigator"]
[Black "Vesapesa"]
[Result "1/2-1/2"]
[WhiteElo "2385"]
[BlackElo "2234"]
[TimeControl "180+1"]
[EndTime "9:52:12 PST"]
[Termination "Game drawn by repetition"]

1. e4 {[%clk 0:03:00.9]} 1... e5 {[%clk 0:02:59.5]} 2. Nf3 {[%clk 0:02:59]} 2...
Nc6 {[%clk 0:02:59.1]} 3. Bc4 {[%clk 0:02:59]} 3... Bc5 {[%clk 0:02:58.5]} 4. c3
{[%clk 0:02:58.9]} 4... Nf6 {[%clk 0:02:58]} 5. d3 {[%clk 0:02:59.1]} 5... a6
{[%clk 0:02:57.8]} 6. O-O {[%clk 0:02:55.2]} 6... Ba7 {[%clk 0:02:56.8]} 7. a4
{[%clk 0:02:54.8]} 7... d6 {[%clk 0:02:56.1]} 8. Bg5 {[%clk 0:02:53.6]} 8... O-O
{[%clk 0:02:43.4]} 9. Nbd2 {[%clk 0:02:51.6]} 9... h6 {[%clk 0:02:39.9]} 10. Bh4
{[%clk 0:02:50.8]} 10... Be6 {[%clk 0:02:35.4]} 11. b4 {[%clk 0:02:45.1]} 11...
Qe7 {[%clk 0:02:33.2]} 12. Qe2 {[%clk 0:02:30.2]} 12... Bxc4 {[%clk 0:02:31.2]}
13. Nxc4 {[%clk 0:02:29.5]} 13... Qe6 {[%clk 0:02:30.9]} 14. b5 {[%clk
0:02:23.8]} 14... axb5 {[%clk 0:02:28.7]} 15. axb5 {[%clk 0:02:23.6]} 15... Ne7
{[%clk 0:02:28]} 16. b6 {[%clk 0:02:21.4]} 16... Bxb6 {[%clk 0:02:24.5]} 17.
Nxb6 {[%clk 0:02:20.8]} 17... cxb6 {[%clk 0:02:24.7]} 18. Qb2 {[%clk 0:02:19.5]}
18... d5 {[%clk 0:02:22.3]} 19. Bxf6 {[%clk 0:02:16.9]} 19... Qxf6 {[%clk
0:02:21.1]} 20. Rfb1 {[%clk 0:02:14.3]} 20... Rxa1 {[%clk 0:02:14.2]} 21. Rxa1
{[%clk 0:02:14]} 21... Rc8 {[%clk 0:02:12]} 22. h3 {[%clk 0:02:13.4]} 22... dxe4
{[%clk 0:02:08.2]} 23. dxe4 {[%clk 0:02:13.2]} 23... Rc6 {[%clk 0:02:03.1]} 24.
Ra8+ {[%clk 0:02:01.3]} 24... Kh7 {[%clk 0:02:01.9]} 25. Re8 {[%clk 0:01:59.2]}
25... Ng6 {[%clk 0:02:00.6]} 26. Qb3 {[%clk 0:01:54]} 26... Qf4 {[%clk
0:01:56.7]} 27. Rd8 {[%clk 0:01:42.4]} 27... Qc1+ {[%clk 0:01:52.8]} 28. Rd1
{[%clk 0:01:41.1]} 28... Qf4 {[%clk 0:01:48.7]} 29. Rd7 {[%clk 0:01:37.9]} 29...
Qc1+ {[%clk 0:01:37.5]} 30. Kh2 {[%clk 0:01:36.4]} 30... Qf4+ {[%clk 0:01:36.6]}
31. Kg1 {[%clk 0:01:35.8]} 31... Qc1+ {[%clk 0:01:30.7]} 32. Kh2 {[%clk
0:01:35.8]} 32... Qf4+ {[%clk 0:01:25.1]} 33. Kg1 {[%clk 0:01:34.7]} 1/2-1/2

[Event "Early-Titled-Tuesday-Blitz-February-27-2024"]
[Site "Chess.com"]
[Date "2024.02.27"]
[Round "10"]
[White "phantom19801127"]
[Black "Goryachkina"]
[Result "0-1"]
[WhiteElo "2537"]
[BlackElo "2689"]
[TimeControl "180+1"]
[EndTime "9:52:20 PST"]
[Termination "Goryachkina won by resignation"]

1. d4 {[%clk 0:02:54]} 1... Nf6 {[%clk 0:02:59.7]} 2. c4 {[%clk 0:02:53.3]} 2...
e6 {[%clk 0:02:59.6]} 3. Nf3 {[%clk 0:02:52.1]} 3... d5 {[%clk 0:02:59.5]} 4.
Nc3 {[%clk 0:02:47.7]} 4... dxc4 {[%clk 0:02:59.4]} 5. e3 {[%clk 0:02:46]} 5...
a6 {[%clk 0:02:56.5]} 6. a4 {[%clk 0:02:45.2]} 6... c5 {[%clk 0:02:55.7]} 7.
Bxc4 {[%clk 0:02:45.2]} 7... Nc6 {[%clk 0:02:53.3]} 8. O-O {[%clk 0:02:45.2]}
8... Be7 {[%clk 0:02:48]} 9. Qe2 {[%clk 0:02:39.2]} 9... cxd4 {[%clk 0:02:45.1]}
10. Rd1 {[%clk 0:02:39.3]} 10... O-O {[%clk 0:02:40.1]} 11. exd4 {[%clk
0:02:39]} 11... Nb4 {[%clk 0:02:38.4]} 12. Bg5 {[%clk 0:02:38.1]} 12... a5
{[%clk 0:02:23.6]} 13. Bxf6 {[%clk 0:02:21.1]} 13... Bxf6 {[%clk 0:02:23.7]} 14.
d5 {[%clk 0:02:21.5]} 14... exd5 {[%clk 0:02:22.1]} 15. Nxd5 {[%clk 0:02:21.4]}
15... Nxd5 {[%clk 0:02:21.4]} 16. Bxd5 {[%clk 0:02:21.3]} 16... Qb6 {[%clk
0:02:18]} 17. Ra3 {[%clk 0:02:07.6]} 17... Qxb2 {[%clk 0:02:04.8]} 18. Qxb2
{[%clk 0:02:06.4]} 18... Bxb2 {[%clk 0:02:04.4]} 19. Rb3 {[%clk 0:02:07]} 19...
Bf6 {[%clk 0:02:04.6]} 20. Bxb7 {[%clk 0:02:06.5]} 20... Bxb7 {[%clk 0:01:59.2]}
21. Rxb7 {[%clk 0:02:06]} 21... h6 {[%clk 0:01:56.9]} 22. g3 {[%clk 0:02:01.6]}
22... Rfb8 {[%clk 0:01:50.6]} 23. Rdb1 {[%clk 0:02:00.4]} 23... Rxb7 {[%clk
0:01:50.6]} 24. Rxb7 {[%clk 0:02:00.1]} 24... Rc8 {[%clk 0:01:50.7]} 25. Rb5
{[%clk 0:01:56.2]} 25... Bc3 {[%clk 0:01:50.1]} 26. Ne5 {[%clk 0:01:46.6]} 26...
Re8 {[%clk 0:01:40]} 27. Nc4 {[%clk 0:01:42.5]} 27... Re4 {[%clk 0:01:36.1]} 28.
Nxa5 {[%clk 0:01:42.3]} 28... Rxa4 {[%clk 0:01:35.8]} 29. Nb3 {[%clk 0:01:41.4]}
29... Ra2 {[%clk 0:01:33.9]} 30. Kf1 {[%clk 0:01:40.6]} 30... Rb2 {[%clk
0:01:32.7]} 31. Nd4 {[%clk 0:01:36.1]} 31... Bxd4 {[%clk 0:01:31.9]} 0-1

[Event "Early-Titled-Tuesday-Blitz-February-27-2024"]
[Site "Chess.com"]
[Date "2024.02.27"]
[Round "10"]
[White "JonasEilenberg"]
[Black "Flaccidmoves"]
[Result "0-1"]
[WhiteElo "2540"]
[BlackElo "2471"]
[TimeControl "180+1"]
[EndTime "9:52:28 PST"]
[Termination "Flaccidmoves won by resignation"]

1. d4 {[%clk 0:03:00.9]} 1... e6 {[%clk 0:02:59.2]} 2. c4 {[%clk 0:02:59.3]}
2... f5 {[%clk 0:02:58.9]} 3. a3 {[%clk 0:02:58.3]} 3... Nf6 {[%clk 0:02:57.7]}
4. Nc3 {[%clk 0:02:58.5]} 4... b6 {[%clk 0:02:56.3]} 5. Nf3 {[%clk 0:02:55.7]}
5... Bb7 {[%clk 0:02:55.5]} 6. Bf4 {[%clk 0:02:56.4]} 6... Be7 {[%clk
0:02:48.4]} 7. h3 {[%clk 0:02:56.1]} 7... O-O {[%clk 0:02:47.1]} 8. e3 {[%clk
0:02:56.5]} 8... Ne4 {[%clk 0:02:41.1]} 9. Qc2 {[%clk 0:02:52.5]} 9... d6 {[%clk
0:02:36.3]} 10. Be2 {[%clk 0:02:50.9]} 10... Nd7 {[%clk 0:02:34.1]} 11. O-O-O
{[%clk 0:02:49.1]} 11... Nxf2 {[%clk 0:02:30.7]} 12. Rhf1 {[%clk 0:02:44.7]}
12... Nxd1 {[%clk 0:02:30.1]} 13. Qxd1 {[%clk 0:02:45.6]} 13... Nf6 {[%clk
0:02:24.4]} 14. Bh2 {[%clk 0:02:45.6]} 14... Ne4 {[%clk 0:02:22.5]} 15. Qc2
{[%clk 0:02:46]} 15... c5 {[%clk 0:02:19.8]} 16. Bd3 {[%clk 0:02:43.8]} 16...
Nxc3 {[%clk 0:02:06.3]} 17. bxc3 {[%clk 0:02:44.6]} 17... Rc8 {[%clk 0:01:54.9]}
18. Nd2 {[%clk 0:02:35.3]} 18... Bg5 {[%clk 0:01:50.1]} 19. Bf4 {[%clk
0:02:26.3]} 19... Bxf4 {[%clk 0:01:44.9]} 20. exf4 {[%clk 0:02:27.2]} 20... Qf6
{[%clk 0:01:41.4]} 21. g4 {[%clk 0:02:19.4]} 21... d5 {[%clk 0:01:30.3]} 22.
gxf5 {[%clk 0:01:49.1]} 22... exf5 {[%clk 0:01:24.5]} 23. Nf3 {[%clk 0:01:43.2]}
23... cxd4 {[%clk 0:01:20.9]} 24. Nxd4 {[%clk 0:01:44.1]} 24... g6 {[%clk
0:01:13.9]} 25. Qb3 {[%clk 0:01:43.9]} 25... Rfe8 {[%clk 0:01:08.1]} 26. Kb1
{[%clk 0:01:38.8]} 26... Re3 {[%clk 0:01:03.8]} 27. Rd1 {[%clk 0:01:33.5]} 27...
Rxd3 {[%clk 0:01:02.4]} 28. Rxd3 {[%clk 0:01:33.5]} 28... dxc4 {[%clk
0:01:02.5]} 29. Qa2 {[%clk 0:01:34.3]} 29... Be4 {[%clk 0:01:02.2]} 0-1

[Event "Early-Titled-Tuesday-Blitz-February-27-2024"]
[Site "Chess.com"]
[Date "2024.02.27"]
[Round "10"]
[White "CarlosjPineror"]
[Black "AniJak"]
[Result "1-0"]
[WhiteElo "2544"]
[BlackElo "2371"]
[TimeControl "180+1"]
[EndTime "9:52:51 PST"]
[Termination "CarlosjPineror won by resignation"]

1. e4 {[%clk 0:03:00.9]} 1... c6 {[%clk 0:02:59.3]} 2. d4 {[%clk 0:02:58.6]}
2... d5 {[%clk 0:02:59.2]} 3. Nc3 {[%clk 0:02:59.2]} 3... dxe4 {[%clk
0:02:58.9]} 4. Nxe4 {[%clk 0:03:00.1]} 4... Nf6 {[%clk 0:02:59]} 5. Nxf6+ {[%clk
0:03:00.3]} 5... exf6 {[%clk 0:02:59.6]} 6. Bc4 {[%clk 0:03:00.9]} 6... Qb6
{[%clk 0:02:58.2]} 7. c3 {[%clk 0:02:50.9]} 7... Bf5 {[%clk 0:02:17.2]} 8. Nf3
{[%clk 0:02:48.9]} 8... Nd7 {[%clk 0:02:17.1]} 9. O-O {[%clk 0:02:48.7]} 9...
O-O-O {[%clk 0:02:16.3]} 10. a4 {[%clk 0:02:48.1]} 10... Bd6 {[%clk 0:02:12.8]}
11. a5 {[%clk 0:02:45.6]} 11... Qc7 {[%clk 0:02:12.7]} 12. a6 {[%clk 0:02:44.6]}
12... b6 {[%clk 0:02:11]} 13. Bxf7 {[%clk 0:02:42.1]} 13... Bg4 {[%clk 0:02:09]}
14. h3 {[%clk 0:02:41.5]} 14... Bxf3 {[%clk 0:01:55.5]} 15. Qxf3 {[%clk
0:02:42.4]} 15... g5 {[%clk 0:01:54.8]} 16. Qf5 {[%clk 0:02:35.6]} 16... h5
{[%clk 0:01:51.1]} 17. Bd2 {[%clk 0:02:27.4]} 17... h4 {[%clk 0:01:46]} 18. Rfe1
{[%clk 0:02:21.1]} 18... Kb8 {[%clk 0:01:43.2]} 19. Be6 {[%clk 0:02:18.2]} 19...
c5 {[%clk 0:01:37.4]} 20. b4 {[%clk 0:02:10.6]} 20... c4 {[%clk 0:01:35]} 21. b5
{[%clk 0:02:09.4]} 21... g4 {[%clk 0:01:18.4]} 22. Qxg4 {[%clk 0:02:09.2]} 22...
f5 {[%clk 0:01:16.5]} 23. Bxf5 {[%clk 0:02:03.9]} 23... Nf6 {[%clk 0:01:15.3]}
24. Qf3 {[%clk 0:02:04]} 24... Rhg8 {[%clk 0:01:10.2]} 25. Re6 {[%clk
0:02:04.1]} 25... Rdf8 {[%clk 0:01:02.3]} 26. Rae1 {[%clk 0:02:04.2]} 26... Bh2+
{[%clk 0:00:42.3]} 27. Kh1 {[%clk 0:02:02.8]} 27... Ne8 {[%clk 0:00:42.3]} 28.
Bh6 {[%clk 0:01:57]} 28... Ng7 {[%clk 0:00:38.3]} 29. Bxg7 {[%clk 0:01:54.5]}
29... Qxg7 {[%clk 0:00:36.8]} 30. Re7 {[%clk 0:01:51.1]} 1-0

[Event "Early-Titled-Tuesday-Blitz-February-27-2024"]
[Site "Chess.com"]
[Date "2024.02.27"]
[Round "10"]
[White "nindjaxx8"]
[Black "JonSnowNW1"]
[Result "1-0"]
[WhiteElo "2658"]
[BlackElo "2531"]
[TimeControl "180+1"]
[EndTime "9:52:58 PST"]
[Termination "nindjaxx8 won on time"]

1. d4 {[%clk 0:03:00.9]} 1... d5 {[%clk 0:02:58.1]} 2. c4 {[%clk 0:03:00.1]}
2... c6 {[%clk 0:02:57.7]} 3. Nc3 {[%clk 0:02:59.6]} 3... Nf6 {[%clk 0:02:57.8]}
4. cxd5 {[%clk 0:02:57.5]} 4... cxd5 {[%clk 0:02:58.7]} 5. Bf4 {[%clk 0:02:55]}
5... Nc6 {[%clk 0:02:56.8]} 6. e3 {[%clk 0:02:54.1]} 6... a6 {[%clk 0:02:57.2]}
7. Nf3 {[%clk 0:02:53.2]} 7... Bg4 {[%clk 0:02:56.1]} 8. Be2 {[%clk 0:02:52.8]}
8... e6 {[%clk 0:02:56.4]} 9. O-O {[%clk 0:02:51.5]} 9... Bd6 {[%clk 0:02:55.7]}
10. Bg3 {[%clk 0:02:48.6]} 10... O-O {[%clk 0:02:54.8]} 11. Rc1 {[%clk 0:02:48]}
11... Rc8 {[%clk 0:02:54.2]} 12. Na4 {[%clk 0:02:42.7]} 12... Ne4 {[%clk
0:02:53]} 13. Bxd6 {[%clk 0:02:26.1]} 13... Qxd6 {[%clk 0:02:51.8]} 14. Nc5
{[%clk 0:02:24.8]} 14... Nxc5 {[%clk 0:02:47.2]} 15. Rxc5 {[%clk 0:02:05.7]}
15... Bxf3 {[%clk 0:02:43.3]} 16. Bxf3 {[%clk 0:02:05]} 16... Nb4 {[%clk
0:02:42.8]} 17. a3 {[%clk 0:01:57]} 17... Nc6 {[%clk 0:02:37.2]} 18. Qb3 {[%clk
0:01:51.8]} 18... Na5 {[%clk 0:02:33.5]} 19. Rxa5 {[%clk 0:01:50]} 1-0

[Event "Early-Titled-Tuesday-Blitz-February-27-2024"]
[Site "Chess.com"]
[Date "2024.02.27"]
[Round "10"]
[White "LiadCuba"]
[Black "SashaKuzhilniy"]
[Result "0-1"]
[WhiteElo "2503"]
[BlackElo "2618"]
[TimeControl "180+1"]
[EndTime "9:53:03 PST"]
[Termination "SashaKuzhilniy won by resignation"]

1. d4 {[%clk 0:03:00.9]} 1... e6 {[%clk 0:02:54.6]} 2. c4 {[%clk 0:03:00.9]}
2... Nf6 {[%clk 0:02:54.1]} 3. Nc3 {[%clk 0:03:01.4]} 3... d5 {[%clk 0:02:54.2]}
4. Nf3 {[%clk 0:03:01.4]} 4... c6 {[%clk 0:02:54.4]} 5. Bg5 {[%clk 0:03:01.4]}
5... Nbd7 {[%clk 0:02:54.2]} 6. Qc2 {[%clk 0:03:01]} 6... dxc4 {[%clk
0:02:49.7]} 7. e4 {[%clk 0:02:55.6]} 7... b5 {[%clk 0:02:47.9]} 8. a3 {[%clk
0:02:51]} 8... h6 {[%clk 0:02:47.3]} 9. Bf4 {[%clk 0:02:47.9]} 9... Be7 {[%clk
0:02:43]} 10. Rd1 {[%clk 0:02:47.8]} 10... Bb7 {[%clk 0:02:42.8]} 11. Be2 {[%clk
0:02:47.7]} 11... O-O {[%clk 0:02:40.3]} 12. h3 {[%clk 0:02:48]} 12... Qb6
{[%clk 0:02:35.9]} 13. O-O {[%clk 0:02:48.2]} 13... c5 {[%clk 0:02:35.2]} 14. d5
{[%clk 0:02:48]} 14... exd5 {[%clk 0:02:35.3]} 15. e5 {[%clk 0:02:48.3]} 15...
Nh5 {[%clk 0:02:31.4]} 16. Bh2 {[%clk 0:02:45]} 16... d4 {[%clk 0:02:31.4]} 17.
Ne4 {[%clk 0:02:41]} 17... d3 {[%clk 0:02:30]} 18. Bxd3 {[%clk 0:02:40.6]} 18...
cxd3 {[%clk 0:02:30.9]} 19. Qxd3 {[%clk 0:02:41.2]} 19... Rad8 {[%clk
0:02:25.3]} 20. Nd6 {[%clk 0:02:35.8]} 20... Bxd6 {[%clk 0:02:23.8]} 21. exd6
{[%clk 0:02:36.7]} 21... Bxf3 {[%clk 0:02:21.3]} 22. Qxf3 {[%clk 0:02:33.2]}
22... Nhf6 {[%clk 0:02:21.7]} 23. Rfe1 {[%clk 0:02:31.7]} 23... Rfe8 {[%clk
0:02:21.2]} 24. Re7 {[%clk 0:02:23]} 24... c4 {[%clk 0:02:17.4]} 25. Rde1 {[%clk
0:02:16.1]} 25... Rxe7 {[%clk 0:02:10.6]} 26. dxe7 {[%clk 0:02:17]} 26... Re8
{[%clk 0:02:10.9]} 27. Qf5 {[%clk 0:02:17.1]} 27... Nc5 {[%clk 0:02:04.8]} 28.
Rd1 {[%clk 0:01:56.1]} 28... Rxe7 {[%clk 0:01:53.6]} 29. Bf4 {[%clk 0:01:53.9]}
29... Nd3 {[%clk 0:01:50.5]} 30. Be3 {[%clk 0:01:53.5]} 30... Qe6 {[%clk
0:01:50]} 31. Qxb5 {[%clk 0:01:51.9]} 31... Ne4 {[%clk 0:01:46]} 32. Qb8+ {[%clk
0:01:29.8]} 32... Kh7 {[%clk 0:01:45.6]} 33. b3 {[%clk 0:01:19.9]} 33... Nexf2
{[%clk 0:01:40.6]} 34. Bxf2 {[%clk 0:01:14.8]} 34... Nxf2 {[%clk 0:01:40.7]} 35.
Rf1 {[%clk 0:01:13.6]} 35... Ne4 {[%clk 0:01:39.9]} 36. bxc4 {[%clk 0:01:04.6]}
36... Qb6+ {[%clk 0:01:39.4]} 37. Qxb6 {[%clk 0:01:01.8]} 37... axb6 {[%clk
0:01:40.3]} 38. Rb1 {[%clk 0:01:01.5]} 38... Re6 {[%clk 0:01:40.3]} 39. a4
{[%clk 0:00:59.9]} 39... Nd2 {[%clk 0:01:40.4]} 40. Rb4 {[%clk 0:00:59.6]} 40...
Rc6 {[%clk 0:01:40.4]} 41. c5 {[%clk 0:00:55.7]} 41... bxc5 {[%clk 0:01:41.3]}
42. Rb1 {[%clk 0:00:52.6]} 42... Nxb1 {[%clk 0:01:41.2]} 0-1

[Event "Early-Titled-Tuesday-Blitz-February-27-2024"]
[Site "Chess.com"]
[Date "2024.02.27"]
[Round "10"]
[White "kaponerde"]
[Black "dianamirza"]
[Result "0-1"]
[WhiteElo "2210"]
[BlackElo "2002"]
[TimeControl "180+1"]
[EndTime "9:53:27 PST"]
[Termination "dianamirza won by checkmate"]

1. e4 {[%clk 0:02:52.8]} 1... c5 {[%clk 0:02:48.4]} 2. Nf3 {[%clk 0:02:49.6]}
2... Nc6 {[%clk 0:02:47.9]} 3. Bb5 {[%clk 0:02:37]} 3... Qc7 {[%clk 0:02:46.1]}
4. Nc3 {[%clk 0:02:25.3]} 4... a6 {[%clk 0:02:45.6]} 5. Bxc6 {[%clk 0:02:17.4]}
5... bxc6 {[%clk 0:02:45]} 6. d3 {[%clk 0:02:14.5]} 6... d5 {[%clk 0:02:45.4]}
7. exd5 {[%clk 0:02:08.7]} 7... Bb7 {[%clk 0:02:42.9]} 8. dxc6 {[%clk
0:02:01.4]} 8... Qxc6 {[%clk 0:02:43.8]} 9. Bf4 {[%clk 0:01:51]} 9... Nf6 {[%clk
0:02:43.5]} 10. Qe2 {[%clk 0:01:47]} 10... e6 {[%clk 0:02:43.9]} 11. O-O-O
{[%clk 0:01:19.6]} 11... Be7 {[%clk 0:02:26.3]} 12. Ne5 {[%clk 0:00:53.7]} 12...
Qb6 {[%clk 0:02:19.6]} 13. Nc4 {[%clk 0:00:48.9]} 13... Qc6 {[%clk 0:02:14.2]}
14. Rhg1 {[%clk 0:00:23.9]} 14... a5 {[%clk 0:02:09.6]} 15. g4 {[%clk
0:00:20.3]} 15... Nd5 {[%clk 0:02:06.7]} 16. Nxd5 {[%clk 0:00:19.2]} 16... Qxd5
{[%clk 0:02:07.6]} 17. Nb6 {[%clk 0:00:16.3]} 17... Qxa2 {[%clk 0:02:07.3]} 18.
Nxa8 {[%clk 0:00:16.7]} 18... Bxa8 {[%clk 0:02:04.8]} 19. Qe5 {[%clk 0:00:16.4]}
19... O-O {[%clk 0:02:01.4]} 20. g5 {[%clk 0:00:15.6]} 20... Rb8 {[%clk
0:01:55.6]} 21. h4 {[%clk 0:00:14.3]} 21... Rb4 {[%clk 0:01:40.4]} 22. h5 {[%clk
0:00:10.7]} 22... Bf3 {[%clk 0:01:37.1]} 23. h6 {[%clk 0:00:08.2]} 23... Bf8
{[%clk 0:01:31.3]} 24. hxg7 {[%clk 0:00:07.7]} 24... Bxg7 {[%clk 0:01:31.4]} 25.
Qe3 {[%clk 0:00:04.4]} 25... Qxb2+ {[%clk 0:01:28.2]} 26. Kd2 {[%clk 0:00:04.9]}
26... Bc3# {[%clk 0:01:26.9]} 0-1